fUSD/lending_fUSD_20241221
["ID","MTS","AMOUNT","RATE_DAILY","PERIOD"]
[346156953,1734759060532,-500.0,0.00021973,2]
[346156954,1734759060541,-500.0,0.00021973,2]
[346156955,1734759060551,-500.0,0.00021973,2]
[346156956,1734759060562,-834.36,0.00021973,2]
[346156957,1734759060572,-506.40544142,0.00021973,2]
[346156958,1734759060581,-500.0,0.00021973,2]
[346156959,1734759060591,-483.39422797,0.00021973,2]
[346156960,1734759060601,-500.0,0.00021973,2]
[346156961,1734759060610,-1105.08,0.00021973,2]
[346156962,1734759060620,-500.0,0.00021973,2]
[346156963,1734759060629,-500.0,0.00021973,2]
[346156964,1734759060638,-500.0,0.00021973,2]
[346156965,1734759060648,-3007.11693,0.00021973,2]
[346156966,1734759060658,-828.1,0.00021973,2]
[346156967,1734759060667,-500.0,0.00021973,2]
[346156968,1734759060677,-369.83640811,0.00021973,2]
[346156969,1734759060686,-551.49,0.00021973,2]
[346156970,1734759060695,-533.45,0.00021973,2]
[346156971,1734759060705,-500.0,0.00021973,2]
[346156972,1734759060715,-587.98,0.00021973,2]
[346156973,1734759060725,-500.0,0.00021973,2]
[346156974,1734759060734,-500.0,0.00021973,2]
[346156975,1734759060744,-500.0,0.00021973,2]
[346156976,1734759060753,-500.0,0.00021973,2]
[346156977,1734759060763,-512.86744071,0.00021973,2]
[346156978,1734759060776,-500.0,0.00021973,2]
[346156979,1734759060786,-500.0,0.00021973,2]
[346156980,1734759060795,-500.0,0.00021973,2]
[346156981,1734759060805,-500.0,0.00021973,2]
[346156982,1734759060817,-500.0,0.00021973,2]
[346156983,1734759060826,-500.0,0.00021973,2]
[346156984,1734759060835,-511.14,0.00021973,2]
[346156985,1734759060845,-931.8,0.00021973,2]
[346156986,1734759060854,-548.65,0.00021973,2]
[346156987,1734759060863,-500.0,0.00021973,2]
[346156988,1734759060873,-500.0,0.00021973,2]
[346156989,1734759060882,-1039.24,0.00021973,2]
[346156990,1734759060891,-500.0,0.00021973,2]
[346156991,1734759060901,-556.76118181,0.00021973,2]
[346156992,1734759060910,-500.0,0.00021973,2]
[346156993,1734759060919,-724.61,0.00021973,2]
[346156994,1734759060929,-500.0,0.00021973,2]
[346156995,1734759060939,-500.0,0.00021973,2]
[346156996,1734759060948,-500.0,0.00021973,2]
[346156997,1734759060958,-531.65617047,0.00021973,2]
[346156998,1734759060967,-500.0,0.00021973,2]
[346156999,1734759060976,-500.0,0.00021973,2]
[346157000,1734759060985,-500.0,0.00021973,2]
[346157001,1734759060995,-500.0,0.00021973,2]
[346157002,1734759061004,-1068.05,0.00021973,2]
[346157003,1734759061014,-508.71369208,0.00021973,2]
[346157004,1734759061023,-500.0,0.00021973,2]
[346157005,1734759061033,-500.0,0.00021973,2]
[346157006,1734759061042,-626.39258285,0.00021973,2]
[346157007,1734759061051,-5000.0,0.00021973,2]
[346157008,1734759061066,-538.37,0.00021973,2]
[346157009,1734759061075,-1130.34,0.00021973,2]
[346157010,1734759061085,-500.0,0.00021973,2]
[346157011,1734759061094,-500.0,0.00021973,2]
[346157012,1734759061105,-500.0,0.00021973,2]
[346157013,1734759061114,-500.0,0.00021973,2]
[346157014,1734759061124,-1308.45,0.00021973,2]
[346157015,1734759061133,-500.0,0.00021973,2]
[346157016,1734759061143,-500.0,0.00021973,2]
[346157017,1734759061153,-500.0,0.00021973,2]
[346157018,1734759061163,-500.0,0.00021973,2]
[346157019,1734759061172,-500.0,0.00021973,2]
[346157020,1734759061182,-560.67,0.00021973,2]
[346157021,1734759061192,-1105.86,0.00021973,2]
[346157022,1734759061202,-338.74122366,0.00021973,2]
[346157023,1734759061212,-934.47,0.00021973,2]
[346157024,1734759061222,-500.0,0.00021973,2]
[346157025,1734759061231,-500.0,0.00021973,2]
[346157026,1734759061240,-500.0,0.00021973,2]
[346157027,1734759061250,-500.0,0.00021973,2]
[346157028,1734759061260,-500.0,0.00021973,2]
[346157029,1734759061270,-1330.78,0.00021973,2]
[346157030,1734759061279,-500.0,0.00021973,2]
[346157031,1734759061289,-500.0,0.00021973,2]
[346157032,1734759061299,-2000.0,0.00021973,2]
[346157033,1734759061313,-1336.92,0.00021973,2]
[346157034,1734759061322,-200.0,0.00021973,2]
[346157035,1734759061331,-500.0,0.00021973,2]
[346157036,1734759061341,-980.7,0.00021973,2]
[346157037,1734759061351,-500.0,0.00021973,2]
[346157038,1734759061360,-528.34,0.00021973,2]
[346157039,1734759061370,-500.0,0.00021973,2]
[346157040,1734759061380,-500.0,0.00021973,2]
[346157041,1734759061390,-5114.1665273,0.00021985,2]
[346157042,1734759061400,-93038.44166212,0.00022,7]
[346157043,1734759061409,-9009.3237923,0.00022,120]
[346157044,1734759061419,-1000.0,0.00022,120]
[346157045,1734759061429,-392.0,0.00022,2]
[346157046,1734759061438,-500.0,0.00022,2]
[346157047,1734759061447,-500.0,0.00022,2]
[346157048,1734759061457,-500.0,0.00022,2]
[346157049,1734759061466,-500.0,0.00022,2]
[346157050,1734759061475,-500.0,0.00022,2]
[346157051,1734759061485,-500.0,0.00022,2]
[346157052,1734759061494,-500.0,0.00022,2]
[346157053,1734759061504,-500.0,0.00022,2]
[346157054,1734759061514,-500.0,0.00022,2]
[346157055,1734759061523,-500.0,0.00022,2]
[346157056,1734759061533,-500.0,0.00022,2]
[346157057,1734759061542,-500.0,0.00022,2]
[346157058,1734759061551,-500.0,0.00022,2]
[346157059,1734759061562,-500.0,0.00022,2]
[346157060,1734759061572,-500.0,0.00022,2]
[346157061,1734759061581,-500.0,0.00022,2]
[346157062,1734759061591,-500.0,0.00022,2]
[346157063,1734759061601,-500.0,0.00022,2]
[346157064,1734759061611,-500.0,0.00022,2]
[346157065,1734759061620,-500.0,0.00022,2]
[346157066,1734759061629,-500.0,0.00022,2]
[346157067,1734759061638,-500.0,0.00022,2]
[346157068,1734759061648,-500.0,0.00022,2]
[346157069,1734759061657,-500.0,0.00022,2]
[346157070,1734759061666,-500.0,0.00022,2]
[346157071,1734759061675,-500.0,0.00022,2]
[346157072,1734759061685,-500.0,0.00022,2]
[346157073,1734759061694,-500.0,0.00022,2]
[346157074,1734759061704,-500.0,0.00022,2]
[346157075,1734759061713,-500.0,0.00022,2]
[346157076,1734759061723,-500.0,0.00022,2]
[346157077,1734759061733,-500.0,0.00022,2]
[346157078,1734759061743,-500.0,0.00022,2]
[346157079,1734759061752,-500.0,0.00022,2]
[346157080,1734759061763,-500.0,0.00022,2]
[346157081,1734759061776,-500.0,0.00022,2]
[346157082,1734759061785,-500.0,0.00022,2]
[346157083,1734759061795,-500.0,0.00022,2]
[346157084,1734759061808,-500.0,0.00022,2]
[346157085,1734759061818,-500.0,0.00022,2]
[346157086,1734759061828,-500.0,0.00022,2]
[346157087,1734759061838,-500.0,0.00022,2]
[346157088,1734759061850,-500.0,0.00022,2]
[346157089,1734759061859,-500.0,0.00022,2]
[346157090,1734759061869,-500.0,0.00022,2]
[346157091,1734759061879,-500.0,0.00022,2]
[346157092,1734759061888,-500.0,0.00022,2]
[346157093,1734759061899,-500.0,0.00022,2]
[346157094,1734759061910,-500.0,0.00022,2]
[346157095,1734759061919,-500.0,0.00022,2]
[346157096,1734759061929,-500.0,0.00022,2]
[346157097,1734759061938,-500.0,0.00022,2]
[346157098,1734759061948,-500.0,0.00022,2]
[346157099,1734759061957,-500.0,0.00022,2]
[346157100,1734759061966,-500.0,0.00022,2]
[346157101,1734759061976,-500.0,0.00022,2]
[346157102,1734759061986,-500.0,0.00022,2]
[346157103,1734759061996,-500.0,0.00022,2]
[346157104,1734759062006,-500.0,0.00022,2]
[346157105,1734759062015,-500.0,0.00022,2]
[346157106,1734759062025,-500.0,0.00022,2]
[346157107,1734759062034,-500.0,0.00022,2]
[346157108,1734759062043,-500.0,0.00022,2]
[346157109,1734759062053,-500.0,0.00022,2]
[346157110,1734759062065,-500.0,0.00022,2]
[346157111,1734759062073,-500.0,0.00022,2]
[346157112,1734759062083,-500.0,0.00022,2]
[346157113,1734759062092,-500.0,0.00022,2]
[346157114,1734759062102,-500.0,0.00022,2]
[346157115,1734759062111,-500.0,0.00022,2]
[346157116,1734759062120,-500.0,0.00022,2]
[346157117,1734759062129,-500.0,0.00022,2]
[346157118,1734759062139,-500.0,0.00022,2]
[346157119,1734759062147,-500.0,0.00022,2]
[346157120,1734759062156,-500.0,0.00022,2]
[346157121,1734759062165,-500.0,0.00022,2]
[346157122,1734759062174,-500.0,0.00022,2]
[346157123,1734759062183,-500.0,0.00022,2]
[346157124,1734759062192,-500.0,0.00022,2]
[346157125,1734759062201,-500.0,0.00022,2]
[346157126,1734759062209,-500.0,0.00022,2]
[346157127,1734759062218,-500.0,0.00022,2]
[346157128,1734759062227,-11176.58252227,0.00022,5]
[346157129,1734759062236,-500.0,0.00022,2]
[346157130,1734759062245,-245.25356602,0.00022,2]
[346157131,1734759062254,-1512.22809348,0.00022,3]
[346157132,1734759062264,-20083.12479936,0.00022,14]
[346157133,1734759062273,-127838.95711347,0.00022,2]
[346157134,1734759062282,-231.90716572,0.00022,2]
[346157135,1734759062291,-5362.0,0.00022,120]
[346157136,1734759062300,-600.0,0.00022005,6]
[346157137,1734759062311,-1898.0,0.00022011,2]
[346157138,1734759062320,-818.0,0.00022011,2]
[346157139,1734759062332,-3769.0,0.00022011,2]
[346157140,1734759062341,-1054.309,0.00022011,2]
[346157141,1734759062351,-1255.0,0.00022011,2]
[346157142,1734759062360,-3681.0,0.00022011,2]
[346157143,1734759062371,-537.982,0.00022011,2]
[346157144,1734759062381,-1101.0,0.00022011,2]
[346157145,1734759062391,-150.892,0.00022011,2]
[346157146,1734759062401,-1265.0,0.00022011,2]
[346157147,1734759062411,-3886.0,0.00022011,2]
[346157148,1734759062421,-293.681,0.00022011,2]
[346157149,1734759062431,-637.294,0.00022011,2]
[346157150,1734759062440,-2010.0,0.00022011,2]
[346157151,1734759062450,-1170.0,0.00022011,2]
[346157152,1734759062459,-927.91,0.00022046,2]
[346157153,1734759062469,-500.0,0.00022046,2]
[346157154,1734759062478,-1495.83,0.00022046,2]
[346157155,1734759062488,-2658.85,0.00022046,2]
[346157156,1734759062497,-1152.01,0.00022046,2]
[346157157,1734759062507,-500.0,0.00022046,2]
[346157158,1734759062516,-1874.31,0.00022046,2]
[346157159,1734759062525,-3520.46,0.00022046,2]
[346157160,1734759062534,-500.0,0.00022046,2]
[346157161,1734759062544,-1947.22,0.00022046,2]
[346157162,1734759062553,-2723.37,0.00022046,2]
[346157163,1734759062563,-2290.09,0.00022046,2]
[346157164,1734759062573,-3320.1,0.00022046,2]
[346157165,1734759062582,-1578.36,0.00022046,2]
[346157166,1734759062592,-2651.6,0.00022046,2]
[346157167,1734759062601,-2360.05,0.00022046,2]
[346157168,1734759062611,-4197.33,0.00022046,2]
[346157169,1734759062621,-587.14,0.00022046,2]
[346157170,1734759062630,-1655.11,0.00022046,2]
[346157171,1734759062782,-500.0,0.00022046,2]
[346157172,1734759062791,-541.53,0.00022046,2]
[346157173,1734759062801,-500.0,0.00022046,2]
[346157174,1734759062815,-1536.83,0.00022046,2]
[346157175,1734759062824,-14181.83,0.00022046,2]
[346157176,1734759062834,-655.16,0.00022046,2]
[346157177,1734759062845,-500.0,0.00022046,2]
[346157178,1734759062855,-527.43861454,0.00022046,2]
[346157179,1734759062864,-1338.85,0.00022046,2]
[346157180,1734759062873,-1366.63,0.00022046,2]
[346157181,1734759062883,-506.58682089,0.00022046,2]
[346157182,1734759062893,-500.0,0.00022046,2]
[346157183,1734759062902,-936.07,0.00022046,2]
[346157184,1734759062912,-1505.35,0.00022046,2]
[346157185,1734759062921,-1051.77,0.00022046,2]
[346157186,1734759062931,-2733.37,0.00022047,2]
[346157187,1734759062940,-500.0,0.00022047,2]
[346157188,1734759062950,-802.3,0.00022047,2]
[346157189,1734759062959,-152.502649,0.00022047,2]
[346157190,1734759062969,-1729.788986,0.00022047,2]
[346157191,1734759062978,-923.35,0.00022047,2]
[346157192,1734759062988,-1956.98,0.00022047,2]
[346157193,1734759062997,-961.34,0.00022047,2]
[346157194,1734759063006,-1572.43,0.00022047,2]
[346157195,1734759063016,-2516.246787,0.00022047,2]
[346157196,1734759063025,-500.0,0.00022047,2]
[346157197,1734759063035,-2832.91,0.00022047,2]
[346157198,1734759063046,-1456.86,0.00022047,2]
[346157199,1734759063056,-695.74,0.00022047,2]
[346157200,1734759063066,-908.49,0.00022047,2]
[346157201,1734759063076,-2895.1,0.00022047,2]
[346157202,1734759063087,-500.0,0.00022047,2]
[346157203,1734759063096,-1201.85,0.00022047,2]
[346157204,1734759063106,-500.0,0.00022047,2]
[346157205,1734759063116,-500.0,0.00022047,2]
[346157206,1734759063126,-1104.51,0.00022047,2]
[346157207,1734759063135,-11462.66,0.00022047,2]
[346157208,1734759063145,-1550.12,0.00022047,2]
[346157209,1734759063155,-500.0,0.00022047,2]
[346157210,1734759063165,-1267.29,0.00022047,2]
[346157211,1734759063175,-1078.56,0.00022047,2]
[346157212,1734759063184,-500.0,0.00022047,2]
[346157213,1734759063193,-500.0,0.00022047,2]
[346157214,1734759063203,-1599.21,0.00022047,2]
[346157215,1734759063213,-11530.12,0.00022047,2]
[346157216,1734759063223,-500.0,0.00022047,2]
[346157217,1734759063233,-3155.1,0.00022047,2]
[346157218,1734759063243,-734.4638556,0.0002205,2]
[346157219,1734759063253,-153.0,0.00022064,2]
[346157220,1734759063263,-153.0,0.00022064,2]
[346157221,1734759063273,-153.0,0.00022064,2]
[346157222,1734759063283,-153.0,0.00022064,2]
[346157223,1734759063292,-153.0,0.00022064,2]
[346157224,1734759063302,-153.0,0.00022064,2]
[346157225,1734759063313,-660.76,0.00022069,2]
[346157226,1734759063323,-510.61850444,0.00022069,2]
[346157227,1734759063334,-510.14894529,0.00022069,2]
[346157228,1734759063344,-500.0,0.00022069,2]
[346157229,1734759063353,-1109.43,0.00022069,2]
[346157230,1734759063363,-500.0,0.00022069,2]
[346157231,1734759063373,-500.0,0.00022069,2]
[346157232,1734759063383,-505.16689425,0.00022069,2]
[346157233,1734759063392,-500.0,0.00022069,2]
[346157234,1734759063402,-500.0,0.00022069,2]
[346157235,1734759063412,-535.02,0.00022069,2]
[346157236,1734759063421,-500.0,0.00022069,2]
[346157237,1734759063430,-500.0,0.00022069,2]
[346157238,1734759063440,-505.44475195,0.00022069,2]
[346157239,1734759063449,-1078.6,0.00022069,2]
[346157240,1734759063458,-352.22888533,0.00022069,2]
[346157241,1734759063468,-500.0,0.00022069,2]
[346157242,1734759063478,-879.91,0.00022069,2]
[346157243,1734759063487,-500.0,0.00022069,2]
[346157244,1734759063497,-500.0,0.00022069,2]
[346157245,1734759063506,-1115.0,0.00022069,2]
[346157246,1734759063516,-500.0,0.00022069,2]
[346157247,1734759063526,-500.0,0.00022069,2]
[346157248,1734759063536,-500.0,0.00022069,2]
[346157249,1734759063546,-696.85,0.00022069,2]
[346157250,1734759063556,-500.0,0.00022069,2]
[346157251,1734759063568,-667.69,0.00022069,2]
[346157252,1734759063578,-500.0,0.00022069,2]
[346157253,1734759063587,-500.0,0.00022069,2]
[346157254,1734759063598,-558.19,0.00022069,2]
[346157255,1734759063608,-893.89,0.00022069,2]
[346157256,1734759063617,-501.89703599,0.00022069,2]
[346157257,1734759063627,-500.0,0.00022069,2]
[346157258,1734759063636,-180.0649147,0.00022069,2]
[346157259,1734759063646,-865.15,0.00022069,2]
[346157260,1734759063656,-500.0,0.00022069,2]
[346157261,1734759063666,-500.0,0.00022069,2]
[346157262,1734759063675,-500.0,0.00022069,2]
[346157263,1734759063686,-500.0,0.00022069,2]
[346157264,1734759063696,-506.54453462,0.00022069,2]
[346157265,1734759063705,-1051.6,0.00022069,2]
[346157266,1734759063715,-500.0,0.00022069,2]
[346157267,1734759063725,-500.0,0.00022069,2]
[346157268,1734759063734,-987.08,0.00022069,2]
[346157269,1734759063744,-500.0,0.00022069,2]
[346157270,1734759063753,-500.0,0.00022069,2]
[346157271,1734759063764,-498.69292853,0.00022069,2]
[346157272,1734759063778,-500.0,0.00022069,2]
[346157273,1734759063788,-525.98755396,0.00022069,2]
[346157274,1734759063797,-500.0,0.00022069,2]
[346157275,1734759063807,-1060.21,0.00022069,2]
[346157276,1734759063818,-500.0,0.00022069,2]
[346157277,1734759063828,-500.0,0.00022069,2]
[346157278,1734759063838,-500.0,0.00022069,2]
[346157279,1734759063849,-500.0,0.00022069,2]
[346157280,1734759063859,-755.08,0.00022069,2]
[346157281,1734759063869,-500.0,0.00022069,2]
[346157282,1734759063879,-500.0,0.00022069,2]
[346157283,1734759063889,-500.0,0.00022069,2]
[346157284,1734759063899,-1010.54,0.00022069,2]
[346157285,1734759063908,-722.12,0.00022069,2]
[346157286,1734759063918,-687.97,0.00022069,2]
[346157287,1734759063927,-1584.02,0.00022069,2]
[346157288,1734759063937,-500.0,0.00022069,2]
[346157289,1734759063946,-1569.83,0.00022069,2]
[346157290,1734759063955,-500.0,0.00022069,2]
[346157291,1734759063965,-837.88,0.00022069,2]
[346157292,1734759063974,-500.0,0.00022069,2]
[346157293,1734759063984,-500.0,0.00022069,2]
[346157294,1734759063994,-500.0,0.00022069,2]
[346157295,1734759064005,-1032.95,0.00022069,2]
[346157296,1734759064015,-577.06,0.00022069,2]
[346157297,1734759064024,-977.93,0.00022069,2]
[346157298,1734759064034,-760.55,0.00022069,2]
[346157299,1734759064044,-500.0,0.00022069,2]
[346157300,1734759064054,-874.55,0.00022069,2]
[346157301,1734759064065,-595.64,0.00022069,2]
[346157302,1734759064075,-500.0,0.00022069,2]
[346157303,1734759064085,-542.57,0.00022069,2]
[346157304,1734759064095,-971.28,0.00022069,2]
[346157305,1734759064105,-8221.78,0.00022069,2]
[346157306,1734759064114,-723.17,0.00022069,2]
[346157307,1734759064123,-500.0,0.00022069,2]
[346157308,1734759064133,-500.0,0.00022069,2]
[346157309,1734759064143,-1694.3,0.00022069,2]
[346157310,1734759064152,-500.0,0.00022069,2]
[346157311,1734759064162,-938.17,0.00022069,2]
[346157312,1734759064173,-500.0,0.00022069,2]
[346157313,1734759064182,-500.0,0.00022069,2]
[346157314,1734759064192,-806.99,0.00022069,2]
[346157315,1734759064201,-500.0,0.00022069,2]
[346157316,1734759064211,-658.97,0.00022069,2]
[346157317,1734759064221,-500.0,0.00022069,2]
[346157318,1734759064232,-500.0,0.00022069,2]
[346157319,1734759064242,-1593.84,0.00022069,2]
[346157320,1734759064252,-500.0,0.00022069,2]
[346157321,1734759064262,-2269.06,0.00022069,2]
[346157322,1734759064272,-500.0,0.00022069,2]
[346157323,1734759064282,-500.0,0.00022069,2]
[346157324,1734759064292,-2180.45,0.00022069,2]
[346157325,1734759064302,-500.0,0.00022069,2]
[346157326,1734759064313,-782.71,0.00022069,2]
[346157327,1734759064323,-935.85,0.00022069,2]
[346157328,1734759064334,-637.11,0.00022069,2]
[346157329,1734759064344,-1161.51,0.00022069,2]
[346157330,1734759064353,-500.0,0.00022069,2]
[346157331,1734759064363,-976.14,0.00022069,2]
[346157332,1734759064373,-822.66,0.00022069,2]
[346157333,1734759064382,-810.66,0.00022069,2]
[346157334,1734759064392,-1519.74,0.00022069,2]
[346157335,1734759064402,-748.18,0.00022069,2]
[346157336,1734759064411,-1636.38,0.00022069,2]
[346157337,1734759064421,-1194.49,0.00022069,2]
[346157338,1734759064430,-774.27,0.00022069,2]
[346157339,1734759064440,-898.82,0.00022069,2]
[346157340,1734759064450,-500.0,0.00022069,2]
[346157341,1734759064459,-1342.04,0.00022069,2]
[346157342,1734759064469,-1670.59,0.00022069,2]
[346157343,1734759064478,-1868.55,0.00022069,2]
[346157344,1734759064488,-503.45902391,0.00022069,2]
[346157345,1734759064497,-500.0,0.00022069,2]
[346157346,1734759064507,-1073.72,0.00022069,2]
[346157347,1734759064517,-3439.14,0.00022069,2]
[346157348,1734759064527,-500.0,0.00022069,2]
[346157349,1734759064537,-506.13320434,0.00022069,2]
[346157350,1734759064546,-500.0,0.00022069,2]
[346157351,1734759064556,-968.83,0.00022069,2]
[346157352,1734759064569,-1506.18,0.00022069,2]
[346157353,1734759064579,-833.21,0.00022069,2]
[346157354,1734759064588,-500.0,0.00022069,2]
[346157355,1734759064598,-1209.23,0.00022069,2]
[346157356,1734759064607,-507.70471327,0.00022069,2]
[346157357,1734759064617,-509.22524717,0.00022069,2]
[346157358,1734759064627,-287.89113812,0.00022069,2]
[346157359,1734759064637,-538.36945,0.00022088,7]
[346157360,1734759064647,-982.77,0.00022096,2]
[346157361,1734759064656,-3563.78854244,0.000221,2]
[346157362,1734759064666,-1500.0,0.00022109,2]
[346157363,1734759064676,-500.0,0.0002211,2]
[346157364,1734759064685,-229.84352876,0.0002211,2]
[346157365,1734759064695,-1000.0,0.00022127,2]
[346157366,1734759064707,-1607.23,0.00022145,2]
[346157367,1734759064716,-4286.12,0.00022145,2]
[346157368,1734759064726,-4690.02,0.00022145,2]
[346157369,1734759064735,-4150.47,0.00022145,2]
[346157370,1734759064745,-1196.33,0.00022145,2]
[346157371,1734759064754,-500.0,0.00022145,2]
[346157372,1734759064763,-860.94,0.00022145,2]
[346157373,1734759064777,-1391.32,0.00022145,2]
[346157374,1734759064787,-1717.68,0.00022145,2]
[346157375,1734759064796,-2709.34,0.00022145,2]
[346157376,1734759064806,-1369.59,0.00022145,2]
[346157377,1734759064818,-2683.53,0.00022145,2]
[346157378,1734759064828,-2211.58,0.00022145,2]
[346157379,1734759064838,-4646.41,0.00022145,2]
[346157380,1734759064849,-3294.2,0.00022145,2]
[346157381,1734759064859,-6424.34,0.00022145,2]
[346157382,1734759064869,-2805.23,0.00022145,2]
[346157383,1734759064879,-1547.53,0.00022145,2]
[346157384,1734759064888,-500.0,0.00022146,2]
[346157385,1734759064898,-500.0,0.00022146,2]
[346157386,1734759064907,-500.0,0.00022146,2]
[346157387,1734759064917,-500.0,0.00022146,2]
[346157388,1734759064927,-500.0,0.00022146,2]
[346157389,1734759064937,-500.0,0.00022146,2]
[346157390,1734759064946,-500.0,0.00022146,2]
[346157391,1734759064955,-500.0,0.00022146,2]
[346157392,1734759064965,-500.0,0.00022146,2]
[346157393,1734759064974,-500.0,0.00022146,2]
[346157394,1734759064983,-500.0,0.00022146,2]
[346157395,1734759064992,-500.0,0.00022146,2]
[346157396,1734759065002,-347.9959276,0.00022146,2]
[346157397,1734759065011,-500.0,0.00022146,2]
[346157398,1734759065020,-500.0,0.00022146,2]
[346157399,1734759065030,-500.0,0.00022146,2]
[346157400,1734759065039,-532.43,0.00022146,2]
[346157401,1734759065048,-500.0,0.00022146,2]
[346157402,1734759065058,-500.0,0.00022146,2]
[346157403,1734759065068,-500.0,0.00022146,2]
[346157404,1734759065078,-308.45170374,0.00022146,2]
[346157405,1734759065088,-500.0,0.00022146,2]
[346157406,1734759065098,-500.0,0.00022146,2]
[346157407,1734759065107,-570.67,0.00022146,2]
[346157408,1734759065117,-500.0,0.00022146,2]
[346157409,1734759065126,-500.0,0.00022146,2]
[346157410,1734759065136,-500.0,0.00022146,2]
[346157411,1734759065145,-500.0,0.00022146,2]
[346157412,1734759065154,-500.0,0.00022146,2]
[346157413,1734759065164,-510.59398584,0.00022146,2]
[346157414,1734759065174,-500.0,0.00022146,2]
[346157415,1734759065183,-512.35939949,0.00022146,2]
[346157416,1734759065193,-500.0,0.00022146,2]
[346157417,1734759065203,-767.99,0.00022146,2]
[346157418,1734759065212,-500.0,0.00022146,2]
[346157419,1734759065222,-242.64949068,0.00022146,2]
[346157420,1734759065232,-500.0,0.00022146,2]
[346157421,1734759065241,-268.10046761,0.00022146,2]
[346157422,1734759065251,-500.0,0.00022146,2]
[346157423,1734759065260,-500.0,0.00022146,2]
[346157424,1734759065270,-500.0,0.00022146,2]
[346157425,1734759065279,-500.0,0.00022146,2]
[346157426,1734759065289,-500.0,0.00022146,2]
[346157427,1734759065298,-500.0,0.00022146,2]
[346157428,1734759065308,-500.0,0.00022146,2]
[346157429,1734759065318,-500.0,0.00022146,2]
[346157430,1734759065328,-500.0,0.00022146,2]
[346157431,1734759065338,-500.0,0.00022146,2]
[346157432,1734759065348,-500.0,0.00022146,2]
[346157433,1734759065357,-500.0,0.00022146,2]
[346157434,1734759065367,-500.0,0.00022146,2]
[346157435,1734759065377,-515.44733243,0.00022146,2]
[346157436,1734759065387,-500.0,0.00022146,2]
[346157437,1734759065397,-500.0,0.00022146,2]
[346157438,1734759065406,-500.0,0.00022146,2]
[346157439,1734759065416,-500.0,0.00022146,2]
[346157440,1734759065426,-500.0,0.00022146,2]
[346157441,1734759065435,-500.0,0.00022146,2]
[346157442,1734759065445,-500.0,0.00022146,2]
[346157443,1734759065455,-500.0,0.00022146,2]
[346157444,1734759065464,-500.0,0.00022146,2]
[346157445,1734759065474,-649.28,0.00022146,2]
[346157446,1734759065483,-513.49565591,0.00022146,2]
[346157447,1734759065493,-636.29,0.00022146,2]
[346157448,1734759065503,-500.0,0.00022146,2]
[346157449,1734759065513,-742.92,0.00022146,2]
[346157450,1734759065523,-200.0,0.00022146,2]
[346157451,1734759065534,-500.0,0.00022146,2]
[346157452,1734759065544,-500.0,0.00022146,2]